fUSD/lending_fUSD_20260611
["ID","MTS","AMOUNT","RATE_DAILY","PERIOD"]
[424814533,1781177500000,-295.82346565,0.00032877,7]
[424814534,1781177500000,-343.215138,0.00032877,7]
[424814535,1781177500000,-475.124021,0.00032877,7]
[424814532,1781177500000,-179.30055535,0.00032877,7]
[424814537,1781177500000,-475.124021,0.00032877,7]
[424814536,1781177500000,-343.215138,0.00032877,7]
[424814539,1781177500000,-343.215138,0.00032877,7]
[424814608,1781177501000,-151.0,0.00032877,7]
[424814603,1781177501000,-400.0,0.00032877,7]
[424814604,1781177501000,-400.0,0.00032877,7]
[424814596,1781177501000,-400.0,0.00032877,7]
[424814598,1781177501000,-408.99036,0.00032877,7]
[424814597,1781177501000,-275.06893,0.00032877,7]
[424814600,1781177501000,-400.0,0.00032877,7]
[424814595,1781177501000,-408.99036,0.00032877,7]
[424814593,1781177501000,-408.99036,0.00032877,7]
[424814594,1781177501000,-400.0,0.00032877,7]
[424814599,1781177501000,-400.0,0.00032877,7]
[424814607,1781177501000,-151.0,0.00032877,7]
[424814614,1781177501000,-167.936549,0.00032877,7]
[424814613,1781177501000,-151.0,0.00032877,7]
[424814611,1781177501000,-151.0,0.00032877,7]
[424814612,1781177501000,-167.936549,0.00032877,7]
[424814606,1781177501000,-400.0,0.00032877,7]
[424814609,1781177501000,-151.0,0.00032877,7]
[424814610,1781177501000,-167.936549,0.00032877,7]
[424814615,1781177501000,-167.936549,0.00032877,7]
[424814618,1781177501000,-151.0,0.00032877,7]
[424814616,1781177501000,-151.0,0.00032877,7]
[424814617,1781177501000,-252.434989,0.00032877,7]
[424814592,1781177501000,-151.0,0.00032877,7]
[424814605,1781177501000,-400.0,0.00032877,7]
[424814601,1781177501000,-400.0,0.00032877,7]
[424814567,1781177501000,-408.99036,0.00032877,7]
[424814591,1781177501000,-400.0,0.00032877,7]
[424814566,1781177501000,-408.99036,0.00032877,7]
[424814565,1781177501000,-151.915879,0.00032877,7]
[424814578,1781177501000,-151.0,0.00032877,7]
[424814568,1781177501000,-408.99036,0.00032877,7]
[424814619,1781177501000,-167.936549,0.00032877,7]
[424814569,1781177501000,-408.99036,0.00032877,7]
[424814573,1781177501000,-408.99036,0.00032877,7]
[424814576,1781177501000,-151.0,0.00032877,7]
[424814571,1781177501000,-408.99036,0.00032877,7]
[424814572,1781177501000,-151.0,0.00032877,7]
[424814570,1781177501000,-408.99036,0.00032877,7]
[424814575,1781177501000,-408.99036,0.00032877,7]
[424814577,1781177501000,-400.0,0.00032877,7]
[424814579,1781177501000,-408.99036,0.00032877,7]
[424814581,1781177501000,-408.99036,0.00032877,7]
[424814584,1781177501000,-151.0,0.00032877,7]
[424814589,1781177501000,-151.0,0.00032877,7]
[424814586,1781177501000,-408.99036,0.00032877,7]
[424814580,1781177501000,-400.0,0.00032877,7]
[424814582,1781177501000,-400.0,0.00032877,7]
[424814590,1781177501000,-408.99036,0.00032877,7]
[424814588,1781177501000,-400.0,0.00032877,7]
[424814587,1781177501000,-151.0,0.00032877,7]
[424814583,1781177501000,-408.99036,0.00032877,7]
[424814585,1781177501000,-400.0,0.00032877,7]
[424814602,1781177501000,-400.0,0.00032877,7]
[424814620,1781177501000,-252.434989,0.00032877,7]
[424814574,1781177501000,-151.0,0.00032877,7]
[424814621,1781177501000,-151.0,0.00032877,7]
[424814652,1781177501000,-252.434989,0.00032877,7]
[424814659,1781177501000,-2010.425386,0.00032877,7]
[424814654,1781177501000,-885.783514,0.00032877,7]
[424814650,1781177501000,-2359.707941,0.00032877,7]
[424814653,1781177501000,-167.936549,0.00032877,7]
[424814649,1781177501000,-885.783514,0.00032877,7]
[424814651,1781177501000,-167.936549,0.00032877,7]
[424814657,1781177501000,-2359.707941,0.00032877,7]
[424814661,1781177501000,-252.434989,0.00032877,7]
[424814660,1781177501000,-2359.707941,0.00032877,7]
[424814662,1781177501000,-2010.425386,0.00032877,7]
[424814663,1781177501000,-2359.707941,0.00032877,7]
[424814664,1781177501000,-885.783514,0.00032877,7]
[424814669,1781177501000,-252.434989,0.00032877,7]
[424814665,1781177501000,-252.434989,0.00032877,7]
[424814670,1781177501000,-2010.425386,0.00032877,7]
[424814667,1781177501000,-2010.425386,0.00032877,7]
[424814666,1781177501000,-2359.707941,0.00032877,7]
[424814668,1781177501000,-885.783514,0.00032877,7]
[424814673,1781177501000,-2359.707941,0.00032877,7]
[424814671,1781177501000,-885.783514,0.00032877,7]
[424814674,1781177501000,-885.783514,0.00032877,7]
[424814672,1781177501000,-252.434989,0.00032877,7]
[424814676,1781177501000,-2359.707941,0.00032877,7]
[424814624,1781177501000,-252.434989,0.00032877,7]
[424814656,1781177501000,-167.936549,0.00032877,7]
[424814655,1781177501000,-252.434989,0.00032877,7]
[424814675,1781177501000,-2010.425386,0.00032877,7]
[424814645,1781177501000,-187.518276,0.00032877,7]
[424814658,1781177501000,-885.783514,0.00032877,7]
[424814622,1781177501000,-167.936549,0.00032877,7]
[424814623,1781177501000,-252.434989,0.00032877,7]
[424814627,1781177501000,-167.936549,0.00032877,7]
[424814626,1781177501000,-151.0,0.00032877,7]
[424814629,1781177501000,-252.434989,0.00032877,7]
[424814628,1781177501000,-151.0,0.00032877,7]
[424814634,1781177501000,-252.434989,0.00032877,7]
[424814631,1781177501000,-252.434989,0.00032877,7]
[424814635,1781177501000,-167.936549,0.00032877,7]
[424814632,1781177501000,-167.936549,0.00032877,7]
[424814636,1781177501000,-252.434989,0.00032877,7]
[424814625,1781177501000,-167.936549,0.00032877,7]
[424814630,1781177501000,-151.0,0.00032877,7]
[424814643,1781177501000,-2359.707941,0.00032877,7]
[424814633,1781177501000,-151.0,0.00032877,7]
[424814641,1781177501000,-151.0,0.00032877,7]
[424814642,1781177501000,-252.434989,0.00032877,7]
[424814639,1781177501000,-2359.707941,0.00032877,7]
[424814644,1781177501000,-885.783514,0.00032877,7]
[424814637,1781177501000,-167.936549,0.00032877,7]
[424814648,1781177501000,-167.936549,0.00032877,7]
[424814646,1781177501000,-252.434989,0.00032877,7]
[424814647,1781177501000,-2359.707941,0.00032877,7]
[424814638,1781177501000,-151.0,0.00032877,7]
[424814640,1781177501000,-167.936549,0.00032877,7]
[424814704,1781177502000,-574.707008,0.00032877,7]
[424814706,1781177502000,-885.783514,0.00032877,7]
[424814711,1781177502000,-574.707008,0.00032877,7]
[424814705,1781177502000,-2359.707941,0.00032877,7]
[424814709,1781177502000,-151.0,0.00032877,7]
[424814708,1781177502000,-2010.425386,0.00032877,7]
[424814712,1781177502000,-709.482143,0.00032877,7]
[424814710,1781177502000,-2359.707941,0.00032877,7]
[424814707,1781177502000,-178.055131,0.00032877,7]
[424814714,1781177502000,-178.055131,0.00032877,7]
[424814716,1781177502000,-1857.473765,0.00032877,7]
[424814724,1781177502000,-709.482143,0.00032877,7]
[424814717,1781177502000,-709.482143,0.00032877,7]
[424814715,1781177502000,-2010.425386,0.00032877,7]
[424814722,1781177502000,-769.423141,0.00032877,7]
[424814720,1781177502000,-885.783514,0.00032877,7]
[424814719,1781177502000,-151.0,0.00032877,7]
[424814718,1781177502000,-574.707008,0.00032877,7]
[424814721,1781177502000,-1857.473765,0.00032877,7]
[424814702,1781177502000,-1857.473765,0.00032877,7]
[424814723,1781177502000,-178.055131,0.00032877,7]
[424814713,1781177502000,-885.783514,0.00032877,7]
[424814703,1781177502000,-151.0,0.00032877,7]
[424814688,1781177502000,-885.783514,0.00032877,7]
[424814695,1781177502000,-1857.473765,0.00032877,7]
[424814728,1781177502000,-1857.473765,0.00032877,7]
[424814680,1781177502000,-885.783514,0.00032877,7]
[424814679,1781177502000,-2359.707941,0.00032877,7]
[424814681,1781177502000,-178.055131,0.00032877,7]
[424814678,1781177502000,-2010.425386,0.00032877,7]
[424814677,1781177502000,-178.055131,0.00032877,7]
[424814683,1781177502000,-2359.707941,0.00032877,7]
[424814693,1781177502000,-885.783514,0.00032877,7]
[424814682,1781177502000,-2010.425386,0.00032877,7]
[424814684,1781177502000,-885.783514,0.00032877,7]
[424814685,1781177502000,-178.055131,0.00032877,7]
[424814689,1781177502000,-178.055131,0.00032877,7]
[424814687,1781177502000,-1857.473765,0.00032877,7]
[424814691,1781177502000,-151.0,0.00032877,7]
[424814686,1781177502000,-2010.425386,0.00032877,7]
[424814690,1781177502000,-1857.473765,0.00032877,7]
[424814692,1781177502000,-2359.707941,0.00032877,7]
[424814694,1781177502000,-2010.425386,0.00032877,7]
[424814697,1781177502000,-574.707008,0.00032877,7]
[424814696,1781177502000,-151.0,0.00032877,7]
[424814698,1781177502000,-2359.707941,0.00032877,7]
[424814700,1781177502000,-709.482143,0.00032877,7]
[424814701,1781177502000,-2010.425386,0.00032877,7]
[424814699,1781177502000,-178.055131,0.00032877,7]
[424814725,1781177502000,-2010.425386,0.00032877,7]
[424814736,1781177502000,-178.055131,0.00032877,7]
[424814726,1781177502000,-885.783514,0.00032877,7]
[424814755,1781177502000,-709.482143,0.00032877,7]
[424814758,1781177502000,-151.0,0.00032877,7]
[424814756,1781177502000,-574.707008,0.00032877,7]
[424814760,1781177502000,-769.423141,0.00032877,7]
[424814761,1781177502000,-151.0,0.00032877,7]
[424814770,1781177502000,-574.707008,0.00032877,7]
[424814759,1781177502000,-1857.473765,0.00032877,7]
[424814767,1781177502000,-151.0,0.00032877,7]
[424814762,1781177502000,-178.055131,0.00032877,7]
[424814763,1781177502000,-574.707008,0.00032877,7]
[424814757,1781177502000,-178.055131,0.00032877,7]
[424814764,1781177502000,-151.0,0.00032877,7]
[424814768,1781177502000,-178.055131,0.00032877,7]
[424814766,1781177502000,-774.752635,0.00032877,7]
[424814769,1781177502000,-709.482143,0.00032877,7]
[424814727,1781177502000,-151.0,0.00032877,7]
[424814777,1781177502000,-1098.62500119,0.00032877,7]
[424814772,1781177502000,-151.0,0.00032877,7]
[424814775,1781177502000,-178.055131,0.00032877,7]
[424814773,1781177502000,-774.752635,0.00032877,7]
[424814774,1781177502000,-151.0,0.00032877,7]
[424814776,1781177502000,-709.482143,0.00032877,7]
[424814765,1781177502000,-769.423141,0.00032877,7]
[424814754,1781177502000,-769.423141,0.00032877,7]
[424814771,1781177502000,-1857.473765,0.00032877,7]
[424814749,1781177502000,-178.055131,0.00032877,7]
[424814731,1781177502000,-2010.425386,0.00032877,7]
[424814734,1781177502000,-769.423141,0.00032877,7]
[424814733,1781177502000,-1857.473765,0.00032877,7]
[424814730,1781177502000,-574.707008,0.00032877,7]
[424814729,1781177502000,-769.423141,0.00032877,7]
[424814735,1781177502000,-574.707008,0.00032877,7]
[424814732,1781177502000,-151.0,0.00032877,7]
[424814737,1781177502000,-709.482143,0.00032877,7]
[424814739,1781177502000,-151.0,0.00032877,7]
[424814744,1781177502000,-2010.425386,0.00032877,7]
[424814738,1781177502000,-2010.425386,0.00032877,7]
[424814745,1781177502000,-178.055131,0.00032877,7]
[424814751,1781177502000,-769.423141,0.00032877,7]
[424814748,1781177502000,-1857.473765,0.00032877,7]
[424814746,1781177502000,-574.707008,0.00032877,7]
[424814753,1781177502000,-1857.473765,0.00032877,7]
[424814747,1781177502000,-709.482143,0.00032877,7]
[424814750,1781177502000,-1857.473765,0.00032877,7]
[424814742,1781177502000,-178.055131,0.00032877,7]
[424814740,1781177502000,-769.423141,0.00032877,7]
[424814741,1781177502000,-574.707008,0.00032877,7]
[424814743,1781177502000,-709.482143,0.00032877,7]
[424814752,1781177502000,-574.707008,0.00032877,7]
[424814780,1781177504000,200.0,5e-05,30]
[424814779,1781177504000,200.0,5e-05,30]
[424814778,1781177504000,200.0,5e-05,30]
[424814782,1781177505000,200.0,5e-05,30]
[424814781,1781177505000,200.0,5e-05,30]
[424814783,1781177505000,200.0,5e-05,30]
[424814785,1781177505000,200.0,5e-05,30]
[424814786,1781177505000,156.7,5e-05,30]
[424814784,1781177505000,200.0,5e-05,30]
[424814789,1781177506000,200.0,1.8e-06,2]
[424814788,1781177506000,200.0,1.8e-06,2]
[424814787,1781177506000,200.0,1.8e-06,2]
[424814791,1781177507000,200.0,2e-06,2]
[424814790,1781177507000,200.0,1.8e-06,2]
[424814802,1781178548000,-250.0,7.12e-05,2]
[424814801,1781178548000,-172.44,6.946e-05,2]
[424814803,1781178548000,-150.0,7.293e-05,2]
[424814804,1781178548000,-322.10853615,7.641e-05,2]
[424814805,1781178548000,-250.0,7.641e-05,2]
[424814806,1781178548000,-181.0,7.68e-05,2]
[424814807,1781178548000,-150.0,7.716e-05,2]
[424814809,1781178548000,-719.79095,7.945e-05,2]
[424814810,1781178548000,-160.0,8.091e-05,2]
[424814811,1781178548000,-505.959548,8.178e-05,2]
[424814812,1781178548000,-150.0,8.476e-05,2]
[424814813,1781178548000,-500.0,8.477e-05,2]
[424814814,1781178548000,-1668.05827185,8.477e-05,2]
[424814808,1781178548000,-150.0,7.793e-05,2]
[424814829,1781178631000,-669.9,8.557e-05,2]
[424814820,1781178631000,-2331.94172815,8.477e-05,2]
[424814821,1781178631000,-4000.0,8.477e-05,2]
[424814823,1781178631000,-3816.98324852,8.477e-05,2]
[424814824,1781178631000,-500.0,8.477e-05,2]
[424814825,1781178631000,-500.0,8.477e-05,2]
[424814830,1781178631000,-1600.0,8.608e-05,2]
[424814822,1781178631000,-4000.0,8.477e-05,2]
[424814832,1781178631000,-2953.57,8.806e-05,2]
[424814835,1781178631000,-7412.38,9.067e-05,2]
[424814834,1781178631000,-1889.6,9.045e-05,2]
[424814828,1781178631000,-165.55,8.55e-05,2]
[424814826,1781178631000,-500.0,8.477e-05,2]
[424814827,1781178631000,-500.0,8.477e-05,2]
[424814831,1781178631000,-2892.46,8.714e-05,2]
[424814833,1781178631000,-471.96,8.971e-05,2]
[424814844,1781178632000,-150.99,9.147e-05,2]
[424814836,1781178632000,-811.47,9.147e-05,2]
[424814838,1781178632000,-9999.99,9.147e-05,2]
[424814842,1781178632000,-4999.99,9.147e-05,2]
[424814841,1781178632000,-999.99,9.147e-05,2]
[424814843,1781178632000,-9999.99,9.147e-05,2]
[424814840,1781178632000,-299.99,9.147e-05,2]
[424814839,1781178632000,-499.99,9.147e-05,2]
[424814845,1781178632000,-1000.0,9.226e-05,2]
[424814837,1781178632000,-9999.99,9.147e-05,2]
[424814848,1781178632000,-5802.82,9.241e-05,2]
[424814847,1781178632000,-206.80685306,9.226e-05,2]
[424814849,1781178632000,-534.88454086,9.499e-05,2]
[424814852,1781178632000,-174489.16463862,9.504e-05,2]
[424814850,1781178632000,-55267.27779887,9.504e-05,2]
[424814851,1781178632000,-265328.53632505,9.504e-05,2]
[424814853,1781178632000,-1860.0,9.504e-05,2]
[424814854,1781178632000,-5530.0,9.504e-05,2]
[424814855,1781178632000,-3160.45,9.504e-05,2]
[424814846,1781178632000,-9793.18314694,9.226e-05,2]
[424814867,1781178637000,-402.16994933,9.503e-05,2]
[424814869,1781178638000,-638.88079135,9.503e-05,2]
[424814870,1781178638000,-79.08342588,9.503e-05,2]
[424814871,1781178638000,-420.91657412,9.503e-05,2]
[424814872,1781178638000,-428.08342588,9.503e-05,2]
[424814868,1781178638000,-97.83005067,9.503e-05,2]
[424814917,1781178641000,-500.0,9.503e-05,2]
[424814916,1781178641000,-293.39895694,9.503e-05,2]
[424814920,1781178641000,-408.79479283,9.503e-05,2]
[424814918,1781178641000,-500.0,9.503e-05,2]
[424814919,1781178641000,-500.50998812,9.503e-05,2]
[424814915,1781178641000,-500.0,9.503e-05,2]
[424814912,1781178641000,-500.0,9.503e-05,2]
[424814914,1781178641000,-500.0,9.503e-05,2]
[424814910,1781178641000,-500.0,9.503e-05,2]
[424814911,1781178641000,-500.0,9.503e-05,2]
[424814907,1781178641000,-500.0,9.503e-05,2]
[424814900,1781178641000,-528.84452594,9.503e-05,2]
[424814893,1781178641000,-71.91657412,9.503e-05,2]
[424814908,1781178641000,-500.0,9.503e-05,2]
[424814905,1781178641000,-500.0,9.503e-05,2]
[424814904,1781178641000,-500.0,9.503e-05,2]
[424814902,1781178641000,-500.0,9.503e-05,2]
[424814901,1781178641000,-500.0,9.503e-05,2]
[424814903,1781178641000,-500.0,9.503e-05,2]
[424814899,1781178641000,-181.94562632,9.503e-05,2]
[424814894,1781178641000,-391.12576916,9.503e-05,2]
[424814897,1781178641000,-569.20173567,9.503e-05,2]
[424814895,1781178641000,-108.87423084,9.503e-05,2]
[424814898,1781178641000,-318.05437368,9.503e-05,2]
[424814896,1781178641000,-501.26754476,9.503e-05,2]
[424814921,1781178641000,-500.0,9.503e-05,2]
[424814906,1781178641000,-500.0,9.503e-05,2]
[424814923,1781178641000,-276.19590824,9.503e-05,2]
[424814909,1781178641000,-500.0,9.503e-05,2]
[424814925,1781178641000,-500.0,9.503e-05,2]
[424814924,1781178641000,-500.0,9.503e-05,2]
[424814951,1781178641000,-330.0,9.504e-05,2]
[424814948,1781178641000,-500.0,9.503e-05,2]
[424814950,1781178641000,-385766.90694114,9.504e-05,2]
[424814949,1781178641000,-500.0,9.503e-05,2]
[424814947,1781178641000,-500.0,9.503e-05,2]
[424814946,1781178641000,-500.0,9.503e-05,2]
[424814935,1781178641000,-500.0,9.503e-05,2]
[424814938,1781178641000,-500.0,9.503e-05,2]
[424814941,1781178641000,-500.0,9.503e-05,2]
[424814939,1781178641000,-500.0,9.503e-05,2]
[424814940,1781178641000,-500.0,9.503e-05,2]
[424814945,1781178641000,-500.0,9.503e-05,2]
[424814944,1781178641000,-500.0,9.503e-05,2]
[424814913,1781178641000,-500.0,9.503e-05,2]
[424814937,1781178641000,-500.0,9.503e-05,2]
[424814927,1781178641000,-500.0,9.503e-05,2]
[424814928,1781178641000,-500.0,9.503e-05,2]
[424814926,1781178641000,-500.0,9.503e-05,2]
[424814930,1781178641000,-500.0,9.503e-05,2]
[424814932,1781178641000,-500.0,9.503e-05,2]
[424814922,1781178641000,-500.0,9.503e-05,2]
[424814936,1781178641000,-500.0,9.503e-05,2]
[424814931,1781178641000,-500.0,9.503e-05,2]
[424814943,1781178641000,-500.0,9.503e-05,2]
[424814933,1781178641000,-500.0,9.503e-05,2]
[424814934,1781178641000,-500.0,9.503e-05,2]
[424814929,1781178641000,-500.0,9.503e-05,2]
[424814942,1781178641000,-500.0,9.503e-05,2]
[424814959,1781178643000,-1226.85239246,9.504e-05,2]
[424814961,1781178643000,-1251.03,9.504e-05,2]
[424814963,1781178643000,-693.03357762,9.504e-05,2]
[424814962,1781178643000,-4694.93067227,9.504e-05,2]
[424814958,1781178643000,-1520.12159028,9.504e-05,2]
[424814955,1781178643000,-2521.37294506,9.504e-05,2]
[424814957,1781178643000,-3269.32244618,9.504e-05,2]
[424814954,1781178643000,-17750.20404371,9.504e-05,2]
[424814956,1781178643000,-564.82359116,9.504e-05,2]
[424814960,1781178643000,-454.68174005,9.504e-05,2]
[424814965,1781178645000,-500.0,9.503e-05,2]
[424814966,1781178645000,-1543.14602029,9.503e-05,2]
[424814968,1781178645000,-480.13386782,9.503e-05,2]
[424814967,1781178645000,-1543.14602029,9.503e-05,2]
[424814970,1781178646000,-1073.25784753,9.503e-05,2]
[424814969,1781178646000,-1063.01215247,9.503e-05,2]
[424814974,1781178646000,-1543.14602029,9.503e-05,2]
[424814973,1781178646000,-1543.14602029,9.503e-05,2]
[424814972,1781178646000,-1543.14602029,9.503e-05,2]
[424814980,1781178646000,-591.48598465,9.503e-05,2]
[424814976,1781178646000,-1543.14602029,9.503e-05,2]
[424814971,1781178646000,-469.88817276,9.503e-05,2]
[424814975,1781178646000,-500.0,9.503e-05,2]
[424814981,1781178646000,-1543.14602029,9.503e-05,2]
[424814978,1781178646000,-500.0,9.503e-05,2]
[424814982,1781178646000,-1543.14602029,9.503e-05,2]
[424814977,1781178646000,-1543.14602029,9.503e-05,2]
[424814994,1781178646000,-1193.23464741,9.503e-05,2]
[424814979,1781178646000,-1543.14602029,9.503e-05,2]
[424814992,1781178646000,-1543.14602029,9.503e-05,2]
[424814993,1781178646000,-1543.14602029,9.503e-05,2]
[424814991,1781178646000,-1543.14602029,9.503e-05,2]
[424814986,1781178646000,-1543.14602029,9.503e-05,2]
[424814990,1781178646000,-1543.14602029,9.503e-05,2]
[424814985,1781178646000,-1543.14602029,9.503e-05,2]
[424814983,1781178646000,-1543.14602029,9.503e-05,2]
[424814987,1781178646000,-569.73179893,9.503e-05,2]
[424814988,1781178646000,-290.63289603,9.503e-05,2]
[424814984,1781178646000,-1543.14602029,9.503e-05,2]
[424814989,1781178646000,-682.78132533,9.503e-05,2]
[424816395,1781179053000,-9152.97533283,8e-05,2]
[424816394,1781179053000,-300.0,7.999e-05,2]
[424816393,1781179053000,-396.02466717,7.888e-05,2]
[424816392,1781179053000,-151.0,7.681e-05,2]
[424816396,1781179055000,-5739.56808671,8e-05,2]
[424816398,1781179095000,-150.0,8.502e-05,2]
[424816397,1781179095000,-517.36627865,8.502e-05,2]
[424816408,1781179616000,-9.7503832,8.133e-05,2]
[424816407,1781179616000,-154.0,7.681e-05,2]
[424816417,1781179831000,-150.0,7.871e-05,2]
[424816419,1781179831000,-13559.23927528,7.872e-05,2]
[424816416,1781179831000,-154.0,7.682e-05,2]
[424816418,1781179831000,-98919.67763938,7.872e-05,2]
[424816420,1781179832000,-364.0,7.872e-05,2]
[424816429,1781179838000,-3568.85180875,7.872e-05,2]
[424816430,1781179838000,-6187.64401634,7.872e-05,2]
[424816427,1781179838000,-450.58499,7.872e-05,2]
[424816428,1781179838000,-2510.8565844,7.872e-05,2]
[424816431,1781179838000,-567.55422407,7.872e-05,2]
[424816486,1781179841000,-299.99,8.532e-05,2]
[424816487,1781179841000,-166.09,8.585e-05,2]
[424816488,1781179841000,-576.15,8.593e-05,2]
[424816490,1781179841000,-150.0,8.698e-05,2]
[424816489,1781179841000,-150.0,8.65e-05,2]
[424816492,1781179841000,-271.00770342,8.699e-05,2]
[424816491,1781179841000,-500.0,8.699e-05,2]
[424816494,1781179841000,-447.21655394,8.699e-05,2]
[424816499,1781179841000,-500.0,8.699e-05,2]
[424816496,1781179841000,-350.88728134,8.699e-05,2]
[424816498,1781179841000,-500.0,8.699e-05,2]
[424816493,1781179841000,-398.44121497,8.699e-05,2]
[424816505,1781179841000,-500.0,8.699e-05,2]
[424816500,1781179841000,-500.0,8.699e-05,2]
[424816501,1781179841000,-500.0,8.699e-05,2]
[424816502,1781179841000,-500.0,8.699e-05,2]
[424816504,1781179841000,-500.0,8.699e-05,2]
[424816503,1781179841000,-500.0,8.699e-05,2]
[424816517,1781179841000,-500.0,8.699e-05,2]
[424816507,1781179841000,-493.75784134,8.699e-05,2]
[424816506,1781179841000,-500.0,8.699e-05,2]
[424816508,1781179841000,-500.0,8.699e-05,2]
[424816495,1781179841000,-500.0,8.699e-05,2]
[424816484,1781179841000,-435.77,8.532e-05,2]
[424816485,1781179841000,-999.99,8.532e-05,2]
[424816511,1781179841000,-500.0,8.699e-05,2]
[424816460,1781179841000,-286595.01146178,7.872e-05,2]
[424816462,1781179841000,-150.0,8.028e-05,2]
[424816468,1781179841000,-344.91085244,8.296e-05,2]
[424816466,1781179841000,-2000.0,8.219e-05,2]
[424816464,1781179841000,-200.0,8.092e-05,2]
[424816465,1781179841000,-300.0,8.218e-05,2]
[424816461,1781179841000,-150.0,7.95e-05,2]
[424816463,1781179841000,-567.91,8.061e-05,2]
[424816469,1781179841000,-344.91085242,8.498e-05,2]
[424816467,1781179841000,-3706.19,8.219e-05,2]
[424816471,1781179841000,-150.0,8.532e-05,2]
[424816470,1781179841000,-150.0,8.532e-05,2]
[424816473,1781179841000,-150.0,8.532e-05,2]
[424816472,1781179841000,-150.0,8.532e-05,2]
[424816477,1781179841000,-499.99,8.532e-05,2]
[424816474,1781179841000,-150.0,8.532e-05,2]
[424816476,1781179841000,-19999.99,8.532e-05,2]
[424816479,1781179841000,-9999.99,8.532e-05,2]
[424816480,1781179841000,-9999.99,8.532e-05,2]
[424816478,1781179841000,-1191.97,8.532e-05,2]
[424816475,1781179841000,-150.0,8.532e-05,2]
[424816481,1781179841000,-150.99,8.532e-05,2]
[424816483,1781179841000,-8219.79,8.532e-05,2]
[424816482,1781179841000,-9999.99,8.532e-05,2]
[424816510,1781179841000,-228.84452594,8.699e-05,2]
[424816497,1781179841000,-500.0,8.699e-05,2]
[424816509,1781179841000,-500.0,8.699e-05,2]
[424816536,1781179841000,-500.0,8.699e-05,2]
[424816532,1781179841000,-500.0,8.699e-05,2]
[424816535,1781179841000,-500.0,8.699e-05,2]
[424816544,1781179841000,-500.0,8.699e-05,2]
[424816546,1781179841000,-500.0,8.699e-05,2]
[424816545,1781179841000,-500.0,8.699e-05,2]
[424816553,1781179841000,-500.0,8.699e-05,2]
[424816550,1781179841000,-500.0,8.699e-05,2]
[424816547,1781179841000,-500.0,8.699e-05,2]
[424816549,1781179841000,-500.0,8.699e-05,2]
[424816555,1781179841000,-500.0,8.699e-05,2]
[424816548,1781179841000,-500.0,8.699e-05,2]
[424816551,1781179841000,-500.0,8.699e-05,2]
[424816554,1781179841000,-500.0,8.699e-05,2]
[424816552,1781179841000,-500.0,8.699e-05,2]
[424816512,1781179841000,-500.0,8.699e-05,2]
[424816556,1781179841000,-500.0,8.699e-05,2]
[424816558,1781179841000,-500.0,8.699e-05,2]
[424816560,1781179841000,-500.0,8.699e-05,2]
[424816559,1781179841000,-500.0,8.699e-05,2]
[424816562,1781179841000,-500.0,8.699e-05,2]
[424816561,1781179841000,-500.0,8.699e-05,2]
[424816563,1781179841000,-500.0,8.699e-05,2]
[424816531,1781179841000,-276.19590824,8.699e-05,2]
[424816534,1781179841000,-500.0,8.699e-05,2]
[424816557,1781179841000,-500.0,8.699e-05,2]
[424816537,1781179841000,-571.50677162,8.699e-05,2]
[424816533,1781179841000,-352.09641076,8.699e-05,2]
[424816513,1781179841000,-500.0,8.699e-05,2]
[424816515,1781179841000,-500.0,8.699e-05,2]
[424816514,1781179841000,-500.0,8.699e-05,2]
[424816518,1781179841000,-500.0,8.699e-05,2]
[424816520,1781179841000,-500.0,8.699e-05,2]
[424816529,1781179841000,-500.0,8.699e-05,2]
[424816521,1781179841000,-500.0,8.699e-05,2]
[424816527,1781179841000,-433.98956937,8.699e-05,2]
[424816519,1781179841000,-500.0,8.699e-05,2]
[424816524,1781179841000,-500.0,8.699e-05,2]
[424816516,1781179841000,-500.0,8.699e-05,2]